fUST/lending_fUST_20250121
["ID","MTS","AMOUNT","RATE_DAILY","PERIOD"]
[349783389,1737425447901,-500.0,0.00022054,3]
[349783390,1737425447911,-500.0,0.00022054,3]
[349783391,1737425447921,-510.87975166,0.00022054,3]
[349783392,1737425447931,-500.0,0.00022054,3]
[349783393,1737425447940,-500.0,0.00022054,3]
[349783394,1737425447950,-476.33715134,0.00022054,3]
[349783395,1737425447963,-523.95284866,0.00022054,3]
[349783396,1737425447972,-638.19,0.00022054,3]
[349783397,1737425447982,-500.0,0.00022054,3]
[349783398,1737425447991,-500.0,0.00022054,3]
[349783399,1737425448001,-954.2,0.00022054,3]
[349783400,1737425448010,-256.74695168,0.00022054,3]
[349783401,1737425448020,-500.0,0.00022054,3]
[349783402,1737425448030,-500.0,0.00022054,3]
[349783403,1737425448041,-500.0,0.00022054,3]
[349783404,1737425448052,-500.0,0.00022054,3]
[349783405,1737425448062,-1749.42,0.00022054,3]
[349783406,1737425448078,-970.03,0.00022054,3]
[349783407,1737425448088,-500.0,0.00022054,3]
[349783408,1737425448100,-175.1498808,0.00022054,3]
[349783409,1737425448110,-500.0,0.00022054,3]
[349783410,1737425448120,-500.0,0.00022054,3]
[349783411,1737425448130,-500.0,0.00022054,3]
[349783412,1737425448139,-500.0,0.00022054,3]
[349783413,1737425448149,-524.33,0.00022054,3]
[349783414,1737425448159,-334.97169938,0.00022054,3]
[349783415,1737425448168,-500.0,0.00022054,3]
[349783416,1737425448178,-500.0,0.00022054,3]
[349783417,1737425448187,-503.74917346,0.00022054,3]
[349783418,1737425448197,-500.0,0.00022054,3]
[349783419,1737425448207,-658.39979588,0.00022054,3]
[349783420,1737425448221,-112.22020412,0.00022054,3]
[349783421,1737425448231,-935.73,0.00022054,3]
[349783422,1737425448242,-500.0,0.00022054,3]
[349783423,1737425448252,-500.0,0.00022054,3]
[349783424,1737425448262,-514.14325255,0.00022054,3]
[349783425,1737425448273,-500.0,0.00022054,3]
[349783426,1737425448283,-500.0,0.00022054,3]
[349783427,1737425448294,-500.0,0.00022054,3]
[349783428,1737425448304,-500.0,0.00022054,3]
[349783429,1737425448314,-500.0,0.00022054,3]
[349783430,1737425448325,-500.0,0.00022054,3]
[349783431,1737425448335,-502.58,0.00022054,3]
[349783432,1737425448347,-500.0,0.00022054,3]
[349783433,1737425448357,-554.39,0.00022054,3]
[349783434,1737425448367,-784.95,0.00022054,3]
[349783435,1737425448376,-500.0,0.00022054,3]
[349783436,1737425448386,-1227.27,0.00022054,3]
[349783437,1737425448396,-500.0,0.00022054,3]
[349783438,1737425448406,-1170.93,0.00022054,3]
[349783439,1737425448416,-1435.95,0.00022054,3]
[349783440,1737425448427,-500.0,0.00022054,3]
[349783441,1737425448438,-500.0,0.00022054,3]
[349783442,1737425448447,-151.0,0.00022054,7]
[349783443,1737425448457,-151.0,0.00022054,7]
[349783444,1737425448467,-151.0,0.00022054,7]
[349783445,1737425448477,-500.0,0.00022054,3]
[349783446,1737425448487,-151.0,0.00022054,7]
[349783447,1737425448499,-151.0,0.00022054,7]
[349783448,1737425448509,-241.154018,0.00022054,7]
[349783449,1737425448520,-558.39,0.00022054,3]
[349783450,1737425448530,-632.37195527,0.00022054,3]
[349783451,1737425448543,-14.1693748,0.00022054,3]
[349783452,1737425448553,-161.20604974,0.00022054,3]
[349783453,1737425448564,-171.62457546,0.00022054,3]
[349783454,1737425448577,-328.37542454,0.00022054,3]
[349783455,1737425448587,-502.83996862,0.00022054,3]
[349783456,1737425448602,-63.02746384,0.00022054,3]
[349783457,1737425448616,-436.97253616,0.00022054,3]
[349783458,1737425448765,-500.0,0.00022054,3]
[349783459,1737425448776,-500.0,0.00022054,3]
[349783460,1737425448786,-502.9226123,0.00022054,3]
[349783461,1737425448796,-975.92,0.00022054,3]
[349783462,1737425448806,-500.0,0.00022054,3]
[349783463,1737425448815,-500.0,0.00022054,3]
[349783464,1737425448825,-500.0,0.00022054,3]
[349783465,1737425448835,-500.0,0.00022054,3]
[349783466,1737425448847,-500.0,0.00022054,3]
[349783467,1737425448857,-500.0,0.00022054,3]
[349783468,1737425448867,-500.0,0.00022054,3]
[349783469,1737425448878,-500.0,0.00022054,3]
[349783470,1737425448887,-500.0,0.00022054,3]
[349783471,1737425448897,-662.97,0.00022054,3]
[349783472,1737425448907,-500.0,0.00022054,3]
[349783473,1737425448917,-500.0,0.00022054,3]
[349783474,1737425448927,-500.0,0.00022054,3]
[349783475,1737425448937,-2577.85,0.00022054,2]
[349783476,1737425448947,-500.0,0.00022054,3]
[349783477,1737425448956,-503.0500023,0.00022054,3]
[349783478,1737425448966,-2373.31,0.00022054,3]
[349783479,1737425448977,-500.0,0.00022054,3]
[349783480,1737425448987,-500.0,0.00022054,3]
[349783481,1737425448996,-1936.57,0.00022054,3]
[349783482,1737425449006,-500.0,0.00022054,3]
[349783483,1737425449016,-500.0,0.00022054,3]
[349783484,1737425449029,-500.0,0.00022054,3]
[349783485,1737425449039,-500.0,0.00022054,3]
[349783486,1737425449050,-1077.88,0.00022054,3]
[349783487,1737425449059,-5551.59,0.00022054,3]
[349783488,1737425449069,-151.0,0.00022054,7]
[349783489,1737425449079,-500.0,0.00022054,3]
[349783490,1737425449088,-1881.0,0.00022054,3]
[349783491,1737425449101,-5690.49062591,0.00022054,3]
[349783492,1737425449114,-9066.76937409,0.00022054,3]
[349783493,1737425449126,-500.0,0.00022054,2]
[349783494,1737425449140,-500.0,0.00022054,3]
[349783495,1737425449149,-500.0,0.00022054,3]
[349783496,1737425449159,-171.90932564,0.00022054,3]
[349783497,1737425449168,-270.42916434,0.00022054,3]
[349783498,1737425449178,-2059.46,0.00022054,3]
[349783499,1737425449188,-500.0,0.00022054,3]
[349783500,1737425449197,-843.01,0.00022054,3]
[349783501,1737425449207,-500.0,0.00022054,3]
[349783502,1737425449217,-500.0,0.00022054,3]
[349783503,1737425449227,-500.0,0.00022054,3]
[349783504,1737425449236,-732.01,0.00022054,3]
[349783505,1737425449246,-500.0,0.00022054,3]
[349783506,1737425449255,-196.967318,0.00022054,7]
[349783507,1737425449265,-507.8075037,0.00022054,3]
[349783508,1737425449274,-925.11,0.00022054,3]
[349783509,1737425449283,-500.0,0.00022054,3]
[349783510,1737425449293,-10505.06,0.00022054,3]
[349783511,1737425449303,-500.0,0.00022054,3]
[349783512,1737425449313,-625.71,0.00022054,3]
[349783513,1737425449323,-500.0,0.00022054,3]
[349783514,1737425449333,-891.11,0.00022054,3]
[349783515,1737425449344,-500.0,0.00022054,3]
[349783516,1737425449354,-500.0,0.00022054,3]
[349783517,1737425449364,-500.0,0.00022054,3]
[349783518,1737425449373,-502.16769446,0.00022054,3]
[349783519,1737425449383,-500.0,0.00022054,3]
[349783520,1737425449393,-11248.7,0.00022054,3]
[349783521,1737425449403,-500.0,0.00022054,3]
[349783522,1737425449413,-500.0,0.00022054,3]
[349783523,1737425449422,-525.48058026,0.00022054,3]
[349783524,1737425449432,-500.0,0.00022054,3]
[349783525,1737425449441,-197.70280372,0.00022054,3]
[349783526,1737425449451,-500.0,0.00022054,3]
[349783527,1737425449460,-3587.52,0.00022054,3]
[349783528,1737425449470,-1133.47,0.00022054,3]
[349783529,1737425449479,-500.0,0.00022054,3]
[349783530,1737425449488,-500.0,0.00022054,3]
[349783531,1737425449497,-500.0,0.00022054,3]
[349783532,1737425449507,-5032.2,0.00022054,3]
[349783533,1737425449517,-500.0,0.00022054,3]
[349783534,1737425449526,-600.28794074,0.00022054,3]
[349783535,1737425449536,-2075.93,0.00022054,3]
[349783536,1737425449546,-1709.77,0.00022054,3]
[349783537,1737425449555,-500.0,0.00022054,3]
[349783538,1737425449565,-500.64989605,0.00022054,3]
[349783539,1737425449575,-518.98287045,0.00022054,3]
[349783540,1737425449585,-500.0,0.00022054,3]
[349783541,1737425449597,-500.0,0.00022054,3]
[349783542,1737425449607,-500.0,0.00022054,3]
[349783543,1737425449621,-500.0,0.00022054,3]
[349783544,1737425449631,-833.68,0.00022054,3]
[349783545,1737425449640,-501.01471771,0.00022054,3]
[349783546,1737425449650,-823.49,0.00022054,3]
[349783547,1737425449663,-953.42,0.00022054,3]
[349783548,1737425449673,-500.8902057,0.00022054,3]
[349783549,1737425449683,-1782.41,0.00022054,3]
[349783550,1737425449693,-500.0,0.00022054,3]
[349783551,1737425449703,-500.0,0.00022054,3]
[349783552,1737425449713,-500.0,0.00022054,3]
[349783553,1737425449723,-500.0,0.00022054,3]
[349783554,1737425449733,-500.0,0.00022054,3]
[349783555,1737425449743,-507.98618057,0.00022054,3]
[349783556,1737425449753,-500.0,0.00022054,3]
[349783557,1737425449763,-500.0,0.00022054,3]
[349783558,1737425449772,-90.35218857,0.00022054,3]
[349783560,1737425658253,388.13821347,0.00019954,2]
[349783561,1737425960252,258.75880898,0.00019954,2]
[349783564,1737426112559,165.105891,0.00013973,2]
[349783565,1737426112795,-1000.0,0.0002258,60]
[349783566,1737426261847,172.50587266,0.00019954,2]
[349783571,1737426413454,241.89035904,0.0002,2]
[349783603,1737426632886,-3232.8827126,0.00020609,2]
[349783604,1737426632895,-274.7187353,0.00020688,2]
[349783605,1737426632904,-198.557,0.00020707,2]
[349783607,1737426632914,-300.0,0.00020915,2]
[349783609,1737426632923,-7089.1919971,0.00020916,2]
[349783611,1737426632932,-454.691,0.0002095,2]
[349783612,1737426632941,-150.328793,0.000211,2]
[349783613,1737426632952,-375.27791447,0.00021598,2]
[349783615,1737426632962,-1465.48163144,0.00021652,2]
[349783617,1737426632972,-499.04322299,0.00021817,2]
[349783619,1737426632981,-235.747596,0.00021833,2]
[349783620,1737426632991,-151.0,0.00021904,2]
[349783622,1737426633002,-151.0,0.00021904,2]
[349783624,1737426633011,-151.0,0.00021904,2]
[349783626,1737426633021,-151.0,0.00021904,2]
[349783629,1737426633031,-151.0,0.00021904,2]
[349783631,1737426633043,-151.0,0.00021904,2]
[349783633,1737426633053,-151.0,0.00021904,2]
[349783635,1737426633064,-151.0,0.00021904,2]
[349783637,1737426633074,-151.0,0.00021904,2]
[349783639,1737426633084,-151.0,0.00021904,2]
[349783641,1737426633095,-151.0,0.00021904,2]
[349783643,1737426633105,-151.0,0.00021904,2]
[349783645,1737426633115,-151.0,0.00021904,2]
[349783647,1737426633125,-151.0,0.00021904,2]
[349783649,1737426633139,-200.43,0.00021904,2]
[349783651,1737426633150,-500.0,0.00021916,2]
[349783653,1737426633159,-500.0,0.00021916,2]
[349783655,1737426633170,-500.0,0.00021916,2]
[349783657,1737426633180,-216.73511596,0.00021916,2]
[349783659,1737426633190,-500.0,0.00021916,2]
[349783661,1737426633200,-500.0,0.00021916,2]
[349783662,1737426633210,-500.0,0.00021916,2]
[349783664,1737426633220,-500.0,0.00021916,2]
[349783665,1737426633230,-215.97616371,0.00021916,2]
[349783666,1737426633240,-419.206804,0.00021916,2]
[349783667,1737426633249,-500.0,0.00021916,2]
[349783668,1737426633259,-500.0,0.00021916,2]
[349783669,1737426633268,-500.0,0.00021916,2]
[349783670,1737426633278,-155.37,0.00021917,2]
[349783671,1737426633288,-501.11800601,0.00021917,3]
[349783672,1737426633298,-254.22658292,0.00021917,3]
[349783673,1737426633307,-501.80080277,0.00021917,3]
[349783674,1737426633317,-500.0,0.00021917,3]
[349783675,1737426633326,-498.70775969,0.00021917,3]
[349783676,1737426633335,-500.0,0.00021917,3]
[349783677,1737426633346,-500.0,0.00021917,3]
[349783678,1737426633355,-514.89575301,0.00021917,3]
[349783679,1737426633364,-614.4,0.00021917,3]
[349783680,1737426633375,-500.0,0.00021917,3]
[349783681,1737426633388,-190.93610176,0.00021917,3]
[349783682,1737426633398,-500.0,0.00021917,3]
[349783683,1737426633408,-500.0,0.00021917,3]
[349783684,1737426633418,-500.0,0.00021917,3]
[349783685,1737426633427,-500.0,0.00021917,3]
[349783686,1737426633437,-500.0,0.00021917,3]
[349783687,1737426633447,-500.0,0.00021917,3]
[349783688,1737426633457,-500.0,0.00021917,3]
[349783689,1737426633467,-500.0,0.00021917,3]
[349783690,1737426633477,-500.0,0.00021917,3]
[349783691,1737426633487,-500.0,0.00021917,3]
[349783692,1737426633497,-500.0,0.00021917,3]
[349783693,1737426633507,-500.0,0.00021917,3]
[349783694,1737426633517,-503.7394787,0.00021917,3]
[349783695,1737426633527,-503.22885934,0.00021917,3]
[349783696,1737426633537,-500.0,0.00021917,3]
[349783697,1737426633547,-500.0,0.00021917,3]
[349783698,1737426633557,-500.0,0.00021917,3]
[349783699,1737426633567,-200.0,0.00021917,3]
[349783700,1737426633577,-500.0,0.00021917,3]
[349783701,1737426633587,-500.0,0.00021917,3]
[349783702,1737426633597,-500.0,0.00021917,3]
[349783703,1737426633607,-500.0,0.00021917,3]
[349783704,1737426633618,-500.0,0.00021917,3]
[349783705,1737426633630,-500.0,0.00021917,3]
[349783706,1737426633641,-500.0,0.00021917,3]
[349783707,1737426633651,-500.0,0.00021917,3]
[349783708,1737426633661,-500.0,0.00021917,3]
[349783709,1737426633672,-510.08494788,0.00021917,3]
[349783710,1737426633682,-500.0,0.00021917,3]
[349783711,1737426633693,-500.0,0.00021917,3]
[349783712,1737426633703,-500.0,0.00021917,3]
[349783713,1737426633713,-500.0,0.00021917,3]
[349783714,1737426633723,-500.0,0.00021917,3]
[349783715,1737426633732,-500.0,0.00021917,3]
[349783716,1737426633741,-500.0,0.00021917,3]
[349783717,1737426633752,-248.98414771,0.00021917,3]
[349783718,1737426633762,-500.0,0.00021917,3]
[349783719,1737426633771,-500.0,0.00021917,3]
[349783720,1737426633781,-500.0,0.00021917,3]
[349783721,1737426633791,-500.0,0.00021917,3]
[349783722,1737426633801,-398.62262513,0.00021917,3]
[349783723,1737426633810,-467.80254981,0.00021917,3]
[349783724,1737426633819,-500.0,0.00021917,3]
[349783725,1737426633829,-500.0,0.00021917,3]
[349783726,1737426633839,-500.0,0.00021917,3]
[349783727,1737426633848,-1031.46,0.00021917,3]
[349783728,1737426633858,-500.0,0.00021917,3]
[349783729,1737426633868,-506.80771514,0.00021917,3]
[349783730,1737426633879,-500.0,0.00021917,3]
[349783731,1737426633889,-500.0,0.00021917,3]
[349783732,1737426633899,-659.41,0.00021917,3]
[349783733,1737426633909,-500.0,0.00021917,3]
[349783734,1737426633919,-500.0,0.00021917,3]
[349783735,1737426633928,-500.0,0.00021917,3]
[349783736,1737426633938,-305.53560276,0.00021917,3]
[349783737,1737426633951,-500.0,0.00021917,3]
[349783738,1737426633962,-504.35678046,0.00021917,3]
[349783739,1737426633972,-500.0,0.00021917,3]
[349783740,1737426633981,-500.0,0.00021917,3]
[349783741,1737426633992,-500.0,0.00021917,3]
[349783742,1737426634002,-607.72,0.00021917,3]
[349783743,1737426634011,-500.0,0.00021917,3]
[349783744,1737426634021,-500.0,0.00021917,3]
[349783745,1737426634031,-500.0,0.00021917,3]
[349783746,1737426634040,-502.98876552,0.00021917,3]
[349783747,1737426634050,-502.24407857,0.00021917,3]
[349783748,1737426634060,-505.1004397,0.00021917,3]
[349783749,1737426634069,-500.0,0.00021917,3]
[349783750,1737426634079,-609.79,0.00021917,3]
[349783751,1737426634089,-500.0,0.00021917,3]
[349783752,1737426634099,-500.0,0.00021917,3]
[349783753,1737426634109,-507.21875633,0.00021917,3]
[349783754,1737426634119,-500.0,0.00021917,3]
[349783755,1737426634129,-502.33392949,0.00021917,2]
[349783756,1737426634139,-500.0,0.00021917,3]
[349783757,1737426634149,-1544.21,0.00021917,3]
[349783758,1737426634159,-500.0,0.00021917,3]
[349783759,1737426634169,-518.01,0.00021917,3]
[349783760,1737426634178,-503.46899069,0.00021917,3]
[349783761,1737426634188,-503.95085173,0.00021917,3]
[349783762,1737426634198,-500.0,0.00021917,3]
[349783763,1737426634208,-500.0,0.00021917,3]
[349783764,1737426634218,-500.0,0.00021917,3]
[349783765,1737426634229,-502.58221332,0.00021917,3]
[349783766,1737426634240,-1838.18,0.00021917,3]
[349783767,1737426634250,-500.0,0.00021917,3]
[349783768,1737426634260,-1095.31,0.00021917,3]
[349783769,1737426634271,-500.0,0.00021917,3]
[349783770,1737426634280,-500.0,0.00021917,3]
[349783771,1737426634290,-503.03034629,0.00021917,3]
[349783772,1737426634299,-1106.62,0.00021917,3]
[349783773,1737426634309,-302.74829174,0.00021917,3]
[349783774,1737426634318,-500.0,0.00021917,3]
[349783775,1737426634329,-503.79225995,0.00021917,3]
[349783776,1737426634338,-505.18790813,0.00021917,3]
[349783777,1737426634349,-500.0,0.00021917,3]
[349783778,1737426634359,-500.0,0.00021917,3]
[349783779,1737426634368,-500.0,0.00021917,3]
[349783780,1737426634378,-500.0,0.00021917,3]
[349783781,1737426634389,-531.19992094,0.00021917,3]
[349783782,1737426634399,-500.0,0.00021917,3]
[349783783,1737426634410,-691.85,0.00021917,3]
[349783784,1737426634419,-500.0,0.00021917,3]
[349783785,1737426634429,-1322.65,0.00021917,3]
[349783786,1737426634438,-500.0,0.00021917,3]
[349783787,1737426634448,-500.0,0.00021917,3]
[349783788,1737426634458,-879.57,0.00021917,3]
[349783789,1737426634468,-500.0,0.00021917,3]
[349783790,1737426634478,-516.24425339,0.00021917,3]
[349783791,1737426634488,-937.76,0.00021917,3]
[349783792,1737426634497,-500.0,0.00021917,3]
[349783793,1737426634507,-502.38589165,0.00021917,3]
[349783794,1737426634517,-505.68006929,0.00021917,3]
[349783795,1737426634527,-500.0,0.00021917,3]
[349783796,1737426634536,-500.0,0.00021917,3]
[349783797,1737426634546,-895.51,0.00021917,3]
[349783798,1737426634556,-1624.46,0.00021917,3]
[349783799,1737426634565,-500.0,0.00021917,3]
[349783800,1737426634575,-926.26,0.00021917,3]
[349783801,1737426634585,-500.0,0.00021917,3]
[349783802,1737426634788,-500.0,0.00021917,3]
[349783803,1737426634798,-500.0,0.00021917,3]
[349783804,1737426634808,-500.0,0.00021917,3]
[349783805,1737426634818,-500.0,0.00021917,3]
[349783806,1737426634827,-500.0,0.00021917,3]
[349783807,1737426634838,-500.0,0.00021917,3]
[349783808,1737426634847,-500.0,0.00021917,3]
[349783809,1737426634857,-509.26069319,0.00021917,3]
[349783810,1737426634866,-500.0,0.00021917,3]
[349783811,1737426634876,-500.0,0.00021917,3]
[349783812,1737426634886,-748.07,0.00021917,3]
[349783813,1737426634895,-503.34869977,0.00021917,3]
[349783814,1737426634905,-500.0,0.00021917,3]
[349783815,1737426634915,-878.59,0.00021917,3]
[349783816,1737426634924,-500.0,0.00021917,3]
[349783817,1737426634934,-513.84898273,0.00021917,3]
[349783818,1737426634943,-500.0,0.00021917,3]
[349783819,1737426634954,-500.0,0.00021917,3]
[349783820,1737426634966,-910.02,0.00021917,3]
[349783821,1737426634975,-500.0,0.00021917,3]
[349783822,1737426634986,-502.98185298,0.00021917,3]
[349783823,1737426634995,-500.0,0.00021917,3]
[349783824,1737426635006,-500.0,0.00021917,3]
[349783825,1737426635016,-500.0,0.00021917,3]
[349783826,1737426635026,-500.0,0.00021917,3]
[349783827,1737426635035,-529.02,0.00021917,3]
[349783828,1737426635047,-500.0,0.00021917,3]
[349783829,1737426635057,-500.0,0.00021917,3]
[349783830,1737426635066,-500.0,0.00021917,3]
[349783831,1737426635076,-500.0,0.00021917,3]
[349783832,1737426635087,-439.46852304,0.00021917,3]
[349783833,1737426635096,-500.0,0.00021917,3]
[349783834,1737426635106,-500.0,0.00021917,3]
[349783835,1737426635115,-500.96847737,0.00021917,3]
[349783836,1737426635124,-1094.19,0.00021917,3]
[349783837,1737426635136,-500.0,0.00021917,3]
[349783838,1737426635146,-500.0,0.00021917,3]
[349783839,1737426635155,-596.84688421,0.00021917,3]
[349783840,1737426635164,-1125.0,0.00021917,3]
[349783841,1737426635173,-500.0,0.00021917,3]
[349783842,1737426635183,-500.0,0.00021917,3]
[349783843,1737426635192,-534.99484798,0.00021917,3]
[349783844,1737426635201,-355.99958589,0.00021917,3]
[349783845,1737426635211,-500.60610312,0.00021917,3]
[349783846,1737426635220,-500.0,0.00021917,3]
[349783847,1737426635229,-476.52236566,0.00021917,3]
[349783848,1737426635239,-740.37,0.00021917,3]
[349783849,1737426635248,-594.62838443,0.00021917,3]
[349783850,1737426635257,-500.0,0.00021917,3]
[349783851,1737426635267,-371.49548032,0.00021917,3]
[349783852,1737426635276,-1337.12,0.00021917,3]
[349783853,1737426635286,-500.0,0.00021917,3]
[349783854,1737426635295,-500.0,0.00021917,3]
[349783855,1737426635304,-500.0,0.00021917,3]
[349783856,1737426635313,-500.0,0.00021917,3]
[349783857,1737426635323,-500.0,0.00021917,3]
[349783858,1737426635332,-503.35560617,0.00021917,3]
[349783859,1737426635342,-500.0,0.00021917,3]
[349783860,1737426635352,-538.18,0.00021917,3]
[349783861,1737426635363,-502.5172303,0.00021917,3]
[349783862,1737426635372,-503.56297778,0.00021917,3]
[349783863,1737426635383,-749.3,0.00021917,3]
[349783864,1737426635393,-860.9,0.00021917,3]
[349783865,1737426635402,-915.43,0.00021917,3]
[349783866,1737426635411,-502.09789091,0.00021917,3]
[349783867,1737426635420,-717.99,0.00021917,3]
[349783868,1737426635430,-502.22409895,0.00021917,3]
[349783869,1737426635439,-506.99109704,0.00021917,3]
[349783870,1737426635449,-502.09879984,0.00021917,3]
[349783871,1737426635458,-500.0,0.00021917,3]
[349783872,1737426635467,-500.0,0.00021917,3]
[349783873,1737426635477,-502.91595912,0.00021917,3]
[349783874,1737426635486,-501.76585943,0.00021917,3]
[349783875,1737426635495,-501.82289577,0.00021917,3]
[349783876,1737426635504,-500.0,0.00021917,3]
[349783877,1737426635513,-502.98886179,0.00021917,3]
[349783878,1737426635523,-527.7,0.00021917,3]
[349783879,1737426635532,-503.30944535,0.00021917,3]
[349783880,1737426635541,-502.82076199,0.00021917,3]
[349783881,1737426635550,-500.0,0.00021917,3]
[349783882,1737426635559,-502.08836052,0.00021917,3]
[349783883,1737426635569,-503.94498478,0.00021917,3]
[349783884,1737426635579,-501.85421295,0.00021917,3]
[349783885,1737426635588,-500.0,0.00021917,3]
[349783886,1737426635597,-500.0,0.00021917,3]
[349783887,1737426635607,-500.0,0.00021917,3]
[349783888,1737426635616,-502.37959738,0.00021917,3]
[349783889,1737426635625,-502.41683677,0.00021917,3]
[349783890,1737426635636,-502.64188982,0.00021917,3]
[349783891,1737426635646,-500.0,0.00021917,3]
[349783892,1737426635655,-502.62336531,0.00021917,3]
[349783893,1737426635666,-500.5626937,0.00021917,3]
[349783894,1737426635676,-500.0,0.00021917,3]
[349783895,1737426635687,-500.0,0.00021917,3]
[349783896,1737426635697,-503.02791248,0.00021917,3]
[349783897,1737426635707,-500.0,0.00021917,3]
[349783898,1737426635716,-501.66638854,0.00021917,3]
[349783899,1737426635726,-1797.1,0.00021917,3]
[349783900,1737426635736,-501.15354399,0.00021917,3]
[349783901,1737426635745,-1008.89,0.00021917,3]
[349783902,1737426635756,-502.38537142,0.00021917,3]
[349783903,1737426635766,-500.0,0.00021917,3]
[349783904,1737426635776,-502.04007041,0.00021917,3]
[349783905,1737426635786,-502.31379587,0.00021917,3]
[349783906,1737426635795,-2363.03,0.00021917,2]
[349783907,1737426635804,-501.70804478,0.00021917,3]
[349783908,1737426635814,-502.44879788,0.00021917,3]
[349783909,1737426635824,-500.0,0.00021917,3]
[349783910,1737426635833,-500.0,0.00021917,3]
[349783911,1737426635842,-503.2509781,0.00021917,3]
[349783912,1737426635852,-501.88135837,0.00021917,3]
[349783913,1737426635861,-503.35905788,0.00021917,3]
[349783914,1737426635872,-503.72899886,0.00021917,3]
[349783915,1737426635884,-5146.9,0.00021917,3]
[349783916,1737426635894,-501.78385898,0.00021917,3]
[349783917,1737426635904,-500.76823703,0.00021917,3]
[349783918,1737426635914,-594.4,0.00021917,3]
[349783919,1737426635924,-501.41327211,0.00021917,3]
[349783920,1737426635933,-503.22145334,0.00021917,3]
[349783921,1737426635943,-502.47782898,0.00021917,3]
[349783922,1737426635954,-503.21259239,0.00021917,3]
[349783923,1737426635964,-1763.19,0.00021917,3]
[349783924,1737426635974,-337.06789792,0.00021917,3]
[349783925,1737426635985,-501.52441199,0.00021917,3]
[349783926,1737426635995,-501.64769611,0.00021917,3]
[349783927,1737426636005,-500.0,0.00021917,3]
[349783928,1737426636014,-500.0,0.00021917,3]
[349783929,1737426636023,-501.00481511,0.00021917,3]
[349783930,1737426636033,-500.0,0.00021917,3]
[349783931,1737426636045,-501.11584327,0.00021917,3]
[349783932,1737426636055,-13527.49,0.00021917,3]
[349783933,1737426636065,-542.57,0.00021917,3]
[349783934,1737426636075,-503.10078577,0.00021917,3]
[349783935,1737426636084,-500.0,0.00021917,3]
[349783936,1737426636094,-500.0,0.00021917,3]
[349783937,1737426636104,-283.96164414,0.00021917,3]
[349783984,1737426638645,-395.0,0.00021804,2]
[349783986,1737426638656,-9704.14,0.00021917,3]
[349783988,1737426638665,-500.0,0.00021917,3]
[349783990,1737426638675,-500.0,0.00021917,3]
[349783992,1737426638684,-502.68322486,0.00021917,3]
[349783994,1737426638694,-501.56137761,0.00021917,3]
[349783996,1737426638703,-848.02,0.00021917,3]
[349783998,1737426638713,-793.6,0.00021917,3]
[349784000,1737426638722,-503.23266644,0.00021917,3]
[349784002,1737426638732,-500.0,0.00021917,3]
[349784004,1737426638742,-502.64031374,0.00021917,3]
[349784006,1737426638752,-500.0,0.00021917,2]
[349784008,1737426638761,-501.96286601,0.00021917,3]
[349784010,1737426638771,-500.0,0.00021917,3]
[349784012,1737426638780,-500.0,0.00021917,3]
[349784014,1737426638790,-500.0,0.00021917,3]
[349784016,1737426638801,-790.6,0.00021917,3]